[Event "3rd Sunway Formentera-A 2024"]
[Site "Formentera"]
[Date "2024.04.13"]
[Round "5.4"]
[White "Balakrishnan, Praveen"]
[Black "Manish Anto Cristiano F"]
[Result "0-1"]
[ECO "E27"]
[WhiteElo "2500"]
[BlackElo "2293"]
[Annotator "RC"]
[PlyCount "100"]
[EventDate "2024.04.03"]
[EventType "swiss"]
[EventCountry "ESP"]
[SourceTitle "playchess.com"]
[Source "ChessBase"]
[SourceQuality "1"]
[TimeControl "40/5400+30:1800+30"]

1. d4 {[%emt 0:11:47]} Nf6 {[%emt 0:00:10]} 2. c4 {[%emt 0:00:06]} e6 {[%emt 0:00:10]} 3. Nc3 {[%emt 0:00:07]} Bb4 {[%emt 0:00:13]} 4. f3 {[%emt 0:00:06]} d5 {[%emt 0:03:57]} 5. a3 {[%emt 0:00:11]} Bxc3+ {[%emt 0:01:55]} 6. bxc3 {[%emt 0:00:07]} O-O {[%emt 0:00:07]} 7. cxd5 {[%emt 0:04:10]} exd5 {[%emt 0:01:21]} 8. e3 {[%emt 0:00:36]} Bf5 {[%emt 0:02:05]} 9. g4 {[%emt 0:05:12]} Nxg4 {[%emt 0:02:11]} 10. h4 {[%emt 0:09:45]} Nf6 {[%emt 0:16:21]} 11. h5 {[%emt 0:03:53]} h6 {[%emt 0:05:34]} 12. Ne2 {[%emt 0:03:58]} c5 {[%emt 0:13:12]} 13. Ng3 {[%emt 0:05:00]} Bh7 {[%emt 0:00:35]} 14. Bd3 {[%emt 0:02:43]} cxd4 {[%emt 0:01:17]} 15. exd4 {[%emt 0:23:06]} Nc6 {[%emt 0:16:51]} 16. Bf4 {[%emt 0:04:03]} Kh8 {[%emt 0:03:32]} 17. Kf2 {[%emt 0:02:24]} Rc8 {[%emt 0:03:25]} 18. Nf5 {[%emt 0:09:40]} Ne7 {[%emt 0:06:07]} 19. Nxg7 {[%emt 0:05:36]} Kxg7 {[%emt 0:02:50]} 20. Bxh6+ {[%emt 0:01:03]} Kh8 {[%emt 0:05:46]} 21. Bxf8 {[%emt 0:00:34]} Qxf8 {[%emt 0:00:09]} 22. Bxh7 {[%emt 0:00:43]} Nxh7 {[%emt 0:00:16]} 23. Qe1 {[%emt 0:02:10]} Rc6 {[%emt 0:01:44]} 24. Qe5+ {[%emt 0:01:36]} f6 {[%emt 0:03:06]} 25. Qe3 {[%emt 0:01:33]} Nf5 {[%emt 0:01:09]} 26. Qd3 {[%emt 0:01:47]} Qc8 {[%emt 0:02:53]} 27. Rac1 {[%emt 0:00:10]} Rc4 {[%emt 0:00:51]} 28. h6 {[%emt 0:01:00]} Nxd4 {[%emt 0:01:43]} 29. Rcd1 {[%emt 0:01:01]} Ne6 {[%emt 0:01:55]} 30. Qxd5 {[%emt 0:00:09]} Rxc3 {[%emt 0:00:32]} 31. Rhe1 {[%emt 0:01:08]} Nhg5 {[%emt 0:00:20]} 32. Rd3 {[%emt 0:00:29]} Rc2+ {[%emt 0:02:20]} 33. Kf1 {[%emt 0:00:33]} Nf4 {[%emt 0:01:35]} 34. Qd7 {[%emt 0:00:26]} Qg8 {[%emt 0:00:31]} 35. Re8 {[%emt 0:00:37]} Rc1+ {[%emt 0:00:07]} 36. Kf2 {[%emt 0:00:13]} Ngh3+ {[%emt 0:00:07]} 37. Ke3 {[%emt 0:00:12]} Re1+ {[%emt 0:00:06]} 38. Kd2 {[%emt 0:00:05]} Rxe8 {[%emt 0:00:04]} 39. Qg7+ {[%emt 0:01:27]} Qxg7 {[%emt 0:00:07]} 40. hxg7+ {[%emt 0:00:00]} Kxg7 {[%emt 0:00:00]} 41. Rd7+ {[%emt 0:00:06]} Kg6 {[%emt 0:00:39]} 42. Rxb7 {[%emt 0:00:03]} a5 {[%emt 0:00:08]} 43. a4 {[%emt 0:00:24]} Ng5 {[%emt 0:00:43]} 44. Rb3 {[%emt 0:00:06]} Re2+ {[%emt 0:00:08]} 45. Kd1 {[%emt 0:00:09]} Ra2 {[%emt 0:00:07]} 46. Ke1 {[%emt 0:00:19]} Rxa4 {[%emt 0:00:10]} 47. Kf2 {[%emt 0:00:06]} Ra2+ {[%emt 0:00:54]} 48. Kg1 {[%emt 0:00:23]} Ngh3+ {[%emt 0:03:16]} 49. Kh1 {[%emt 0:00:09]} Rg2 {[%emt 0:00:32]} 50. Rb2 {[%emt 0:00:21]} Nf2+ {[%emt 0:00:08]} 0-1

[Event "3rd Sunway Formentera-A 2024"]
[Site "Formentera"]
[Date "2024.04.13"]
[Round "5.5"]
[White "Alsina Leal, Daniel"]
[Black "Mohamed Anees M"]
[Result "1/2-1/2"]
[ECO "B07"]
[WhiteElo "2497"]
[BlackElo "2253"]
[Annotator "RC"]
[PlyCount "126"]
[EventDate "2024.04.03"]
[EventType "swiss"]
[EventCountry "ESP"]
[SourceTitle "playchess.com"]
[Source "ChessBase"]
[SourceQuality "1"]
[TimeControl "40/5400+30:1800+30"]

1. e4 {[%emt 0:03:34]} d6 {[%emt 0:00:08]} 2. d4 {[%emt 0:00:17]} Nf6 {[%emt 0:00:05]} 3. Nc3 {[%emt 0:00:16]} e5 {[%emt 0:00:30]} 4. dxe5 {[%emt 0:00:30]} dxe5 {[%emt 0:00:00]} 5. Qxd8+ {[%emt 0:00:10]} Kxd8 {[%emt 0:00:11]} 6. Bc4 {[%emt 0:00:30]} Be6 {[%emt 0:00:30]} 7. Bxe6 {[%emt 0:00:30]} fxe6 {[%emt 0:00:00]} 8. f3 {[%emt 0:00:25]} Nbd7 {[%emt 0:00:04]} 9. Nh3 {[%emt 0:03:33]} Bd6 {[%emt 0:01:02]} 10. Nf2 {[%emt 0:04:48]} a6 {[%emt 1:33:00]} 11. a4 {[%emt 0:17:11]} Ke7 {[%emt 0:00:00]} 12. Ke2 {[%emt 0:01:25]} c5 {[%emt 0:00:00]} 13. a5 {[%emt 0:08:49]} h6 {[%emt 0:00:00]} 14. Nb1 {[%emt 0:07:42]} Rhc8 {[%emt 0:00:00]} 15. Be3 {[%emt 0:18:33]} c4 {[%emt 0:00:00]} 16. c3 {[%emt 0:00:34]} Bc5 {[%emt 0:00:00]} 17. Nd1 {[%emt 0:00:47]} Ne8 {[%emt 0:00:00]} 18. Nd2 {[%emt 0:00:43]} Nd6 {[%emt 0:00:00]} 19. Ra4 {[%emt 0:07:35]} Bxe3 {[%emt 0:00:00]} 20. Nxe3 {[%emt 0:00:10]} Nc5 {[%emt 0:00:00]} 21. Ra2 {[%emt 0:03:00]} Nd7 {[%emt 0:00:00]} 22. Ra4 {[%emt 0:00:35]} Nc5 {[%emt 0:00:00]} 23. Rb4 {[%emt 0:07:54]} Nd3 {[%emt 0:00:00]} 24. Rb6 {[%emt 0:00:13]} Nf4+ {[%emt 0:00:00]} 25. Kd1 {[%emt 0:01:20]} Rc5 {[%emt 0:00:00]} 26. g3 {[%emt 0:00:14]} Ng6 {[%emt 0:00:00]} 27. Ke2 {[%emt 0:00:42]} Rac8 {[%emt 0:00:00]} 28. Ra1 {[%emt 0:00:18]} Kd7 {[%emt 0:00:00]} 29. Ra4 {[%emt 0:02:17]} Ne7 {[%emt 0:00:00]} 30. Rbb4 {[%emt 0:03:47]} Nc6 {[%emt 0:00:00]} 31. Nexc4 {[%emt 0:01:57]} Nxb4 {[%emt 0:00:00]} 32. Nb6+ {[%emt 0:00:09]} Kc6 {[%emt 0:00:00]} 33. Nxc8 {[%emt 0:01:42]} Nxc8 {[%emt 0:00:00]} 34. cxb4 {[%emt 0:00:42]} Rc2 {[%emt 0:00:00]} 35. b3 {[%emt 0:03:05]} Rc3 {[%emt 0:00:00]} 36. Nc4 {[%emt 0:01:29]} Rxb3 {[%emt 0:00:00]} 37. Nxe5+ {[%emt 0:00:27]} Kb5 {[%emt 0:00:00]} 38. Ra2 {[%emt 0:00:37]} Rxb4 {[%emt 0:00:00]} 39. Nd3 {[%emt 0:00:29]} Rb1 {[%emt 0:00:00]} 40. Rc2 {[%emt 0:00:00]} Nd6 {[%emt 0:00:00]} 41. Rc5+ {[%emt 0:06:07]} Ka4 {[%emt 0:00:00]} 42. Re5 {[%emt 0:00:12]} Nb5 {[%emt 0:00:00]} 43. Ke3 {[%emt 0:00:55]} Nc7 {[%emt 0:02:06]} 44. Nc5+ {[%emt 0:04:03]} Kxa5 {[%emt 0:00:36]} 45. Nxb7+ {[%emt 0:00:58]} Kb6 {[%emt 0:02:08]} 46. Nc5 {[%emt 0:08:39]} Rb5 {[%emt 0:02:37]} 47. Kd4 {[%emt 0:01:15]} a5 {[%emt 0:00:43]} 48. f4 {[%emt 0:05:53]} Rxc5 {[%emt 0:06:17]} 49. Rxc5 {[%emt 0:00:10]} Nb5+ {[%emt 0:00:02]} 50. Kc4 {[%emt 0:00:14]} Nd6+ {[%emt 0:00:01]} 51. Kd4 {[%emt 0:00:07]} Nb5+ {[%emt 0:00:03]} 52. Rxb5+ {[%emt 0:08:09]} Kxb5 {[%emt 0:00:05]} 53. Kc3 {[%emt 0:00:04]} h5 {[%emt 0:10:06]} 54. h3 {[%emt 0:00:11]} Kc5 {[%emt 0:01:39]} 55. g4 {[%emt 0:00:12]} hxg4 {[%emt 0:00:34]} 56. hxg4 {[%emt 0:00:01]} a4 {[%emt 0:00:06]} 57. g5 {[%emt 0:01:53]} a3 {[%emt 0:00:28]} 58. f5 {[%emt 0:00:51]} exf5 {[%emt 0:00:53]} 59. exf5 {[%emt 0:00:04]} Kd6 {[%emt 0:00:17]} 60. Kb3 {[%emt 0:00:21]} Ke5 {[%emt 0:00:04]} 61. f6 {[%emt 0:00:07]} gxf6 {[%emt 0:00:05]} 62. gxf6 {[%emt 0:00:07]} Kxf6 {[%emt 0:00:04]} 63. Kxa3 {[%emt 0:02:28]} Ke5 {[%emt 0:27:36]} 1/2-1/2

[Event "3rd Sunway Formentera-A 2024"]
[Site "Formentera"]
[Date "2024.04.13"]
[Round "5.6"]
[White "Cervantes Landeiro, Thalia"]
[Black "Sosa, Tomas"]
[Result "1-0"]
[ECO "A43"]
[WhiteElo "2219"]
[BlackElo "2562"]
[Annotator "RC"]
[PlyCount "91"]
[EventDate "2024.04.03"]
[EventType "swiss"]
[EventCountry "ESP"]
[SourceTitle "playchess.com"]
[Source "ChessBase"]
[SourceQuality "1"]
[TimeControl "40/5400+30:1800+30"]

1. d4 {[%emt 0:00:03]} g6 {[%emt 0:00:09]} 2. c4 {[%emt 0:00:09]} Bg7 {[%emt 0:00:06]} 3. Nc3 {[%emt 0:01:02]} d6 {[%emt 0:00:07]} 4. e4 {[%emt 0:01:32]} c5 {[%emt 0:00:07]} 5. d5 {[%emt 0:01:01]} Bxc3+ {[%emt 0:00:37]} 6. bxc3 {[%emt 0:00:07]} e5 {[%emt 0:00:04]} 7. Bd3 {[%emt 0:01:49]} Nd7 {[%emt 0:00:09]} 8. Ne2 {[%emt 0:03:58]} h5 {[%emt 0:00:07]} 9. h4 {[%emt 0:03:34]} Qe7 {[%emt 0:06:21]} 10. Be3 {[%emt 0:02:29]} f5 {[%emt 0:06:40]} 11. exf5 {[%emt 1:20:16]} e4 {[%emt 0:01:17]} 12. Bg5 {[%emt 0:00:00]} Ndf6 {[%emt 0:08:06]} 13. Bc2 {[%emt 0:00:00]} Bxf5 {[%emt 0:00:08]} 14. Ba4+ {[%emt 0:00:00]} Kf8 {[%emt 0:02:37]} 15. O-O {[%emt 0:00:00]} Rh7 {[%emt 0:03:32]} 16. f3 {[%emt 0:00:00]} Rf7 {[%emt 0:01:36]} 17. fxe4 {[%emt 0:00:00]} Bg4 {[%emt 0:00:45]} 18. Qd2 {[%emt 0:00:00]} Kg7 {[%emt 0:04:07]} 19. Ng3 {[%emt 0:00:00]} Raf8 {[%emt 0:25:56]} 20. Rae1 {[%emt 0:00:00]} Qc7 {[%emt 0:04:10]} 21. e5 {[%emt 0:00:00]} dxe5 {[%emt 0:00:25]} 22. d6 {[%emt 0:00:00]} Qa5 {[%emt 0:00:20]} 23. Bc2 {[%emt 0:00:00]} Nd7 {[%emt 0:11:15]} 24. Rxf7+ {[%emt 0:00:00]} Rxf7 {[%emt 0:00:10]} 25. Qd3 {[%emt 0:00:00]} Bf5 {[%emt 0:07:10]} 26. Nxf5+ {[%emt 0:00:00]} gxf5 {[%emt 0:00:02]} 27. Rf1 {[%emt 0:00:00]} e4 {[%emt 0:02:45]} 28. Qg3 {[%emt 0:00:00]} Kf8 {[%emt 0:02:44]} 29. Bd1 {[%emt 0:00:00]} Ndf6 {[%emt 0:06:30]} 30. Rxf5 {[%emt 0:01:01]} Qb6 {[%emt 0:01:06]} 31. Qf4 {[%emt 0:03:35]} Qb1 {[%emt 0:02:02]} 32. Bxf6 {[%emt 0:00:22]} Qxd1+ {[%emt 0:01:14]} 33. Kh2 {[%emt 0:00:02]} Ke8 {[%emt 0:02:07]} 34. Re5+ {[%emt 0:02:23]} Kf8 {[%emt 0:00:44]} 35. Bg7+ {[%emt 0:01:52]} Kxg7 {[%emt 0:00:12]} 36. Qg5+ {[%emt 0:02:08]} Kh7 {[%emt 0:00:37]} 37. Rd5 {[%emt 0:00:35]} Qe2 {[%emt 0:01:15]} 38. d7 {[%emt 0:00:24]} Nh6 {[%emt 0:01:07]} 39. Qxh6+ {[%emt 0:01:02]} Kxh6 {[%emt 0:01:34]} 40. d8=Q {[%emt 0:00:00]} Qg4 {[%emt 0:00:00]} 41. Qh8+ {[%emt 0:00:37]} Kg6 {[%emt 0:00:59]} 42. Rg5+ {[%emt 0:00:37]} Qxg5 {[%emt 0:00:06]} 43. hxg5 {[%emt 0:00:08]} Kxg5 {[%emt 0:01:38]} 44. Qe5+ {[%emt 0:00:14]} Kh6 {[%emt 0:01:30]} 45. Qxc5 {[%emt 0:00:21]} Kg6 {[%emt 0:00:21]} 46. Qe5 {[%emt 0:00:33]} 1-0

[Event "3rd Sunway Formentera-A 2024"]
[Site "Formentera"]
[Date "2024.04.13"]
[Round "5.7"]
[White "Prado, Alexandra"]
[Black "Jacobson, Aaron"]
[Result "0-1"]
[ECO "B26"]
[WhiteElo "1839"]
[BlackElo "2431"]
[Annotator "RC"]
[PlyCount "58"]
[EventDate "2024.04.03"]
[EventType "swiss"]
[EventCountry "ESP"]
[SourceTitle "playchess.com"]
[Source "ChessBase"]
[SourceQuality "1"]
[TimeControl "40/5400+30:1800+30"]

1. e4 {[%emt 0:01:17]} c5 {[%emt 0:00:16]} 2. Nc3 {[%emt 0:00:35]} Nc6 {[%emt 0:00:21]} 3. g3 {[%emt 0:02:55]} g6 {[%emt 0:00:19]} 4. Bg2 {[%emt 0:00:54]} Bg7 {[%emt 0:00:24]} 5. d3 {[%emt 0:00:26]} d6 {[%emt 0:00:28]} 6. Be3 {[%emt 0:00:32]} Nf6 {[%emt 0:00:58]} 7. h3 {[%emt 0:04:21]} Rb8 {[%emt 0:02:19]} 8. f4 {[%emt 0:01:46]} O-O {[%emt 0:02:27]} 9. Nf3 {[%emt 0:10:00]} b5 {[%emt 0:02:21]} 10. Qd2 {[%emt 0:06:10]} b4 {[%emt 0:01:46]} 11. Ne2 {[%emt 0:11:56]} Nd7 {[%emt 0:01:19]} 12. c3 {[%emt 0:03:29]} a5 {[%emt 0:03:44]} 13. O-O {[%emt 0:05:41]} a4 {[%emt 0:02:33]} 14. d4 {[%emt 0:06:39]} Ba6 {[%emt 0:18:48]} 15. Rfd1 {[%emt 0:12:52]} a3 {[%emt 0:06:07]} 16. bxa3 {[%emt 0:07:33]} Bxe2 {[%emt 0:02:35]} 17. Qxe2 {[%emt 0:00:05]} bxc3 {[%emt 0:00:07]} 18. e5 {[%emt 0:04:49]} Qa5 {[%emt 0:21:37]} 19. Rac1 {[%emt 0:08:42]} Nb6 {[%emt 0:15:49]} 20. dxc5 {[%emt 0:01:34]} dxc5 {[%emt 0:00:15]} 21. Qf2 {[%emt 0:01:46]} Na4 {[%emt 0:01:51]} 22. Ng5 {[%emt 0:02:16]} Rb2 {[%emt 0:01:12]} 23. Qf3 {[%emt 0:02:27]} Nd4 {[%emt 0:00:24]} 24. Bxd4 {[%emt 0:00:23]} cxd4 {[%emt 0:00:05]} 25. Rxd4 {[%emt 0:01:40]} Qb6 {[%emt 0:05:29]} 26. Qd5 {[%emt 0:00:52]} Rxg2+ {[%emt 0:01:31]} 27. Kxg2 {[%emt 0:00:42]} Qb2+ {[%emt 0:00:04]} 28. Kf3 {[%emt 0:00:55]} Qxc1 {[%emt 0:00:07]} 29. Kg4 {[%emt 0:01:03]} c2 {[%emt 0:01:50]} 0-1

[Event "3rd Sunway Formentera-A 2024"]
[Site "Formentera"]
[Date "2024.04.13"]
[Round "5.8"]
[White "Nardelli, Marco"]
[Black "Schulman, Julia"]
[Result "1/2-1/2"]
[ECO "B73"]
[WhiteElo "2078"]
[BlackElo "1732"]
[Annotator "NA RC"]
[PlyCount "36"]
[EventDate "2024.04.03"]
[EventType "swiss"]
[EventCountry "ESP"]
[SourceTitle "playchess.com"]
[Source "ChessBase"]
[SourceQuality "1"]
[TimeControl "40/5400+30:1800+30"]

1. e4 {[%emt 0:00:15]} c5 {[%emt 0:00:13]} 2. Nf3 {[%emt 0:00:18]} d6 {[%emt 0:00:12]} 3. d4 {[%emt 0:00:19]} cxd4 {[%emt 0:00:08]} 4. Nxd4 {[%emt 0:00:04]} Nf6 {[%emt 0:00:12]} 5. Nc3 {[%emt 0:01:30]} g6 {[%emt 0:00:19]} 6. Be2 {[%emt 0:03:46]} Bg7 {[%emt 0:00:48]} 7. O-O {[%emt 0:00:33]} O-O {[%emt 0:02:22]} 8. Be3 {[%emt 0:01:20]} Nc6 {[%emt 0:00:27]} 9. h3 {[%emt 0:00:16]} d5 {[%emt 0:08:02]} 10. exd5 {[%emt 0:07:27]} Nxd5 {[%emt 0:00:49]} 11. Nxd5 {[%emt 0:03:10]} Nxd4 {[%emt 0:06:19]} 12. Bxd4 {[%emt 0:00:20]} Qxd5 {[%emt 0:00:10]} 13. Bxg7 {[%emt 0:01:02]} Qxd1 {[%emt 0:00:07]} 14. Rfxd1 {[%emt 0:02:01]} Kxg7 {[%emt 0:00:09]} 15. Bf3 {[%emt 0:00:32]} Rb8 {[%emt 0:00:43]} 16. c4 {[%emt 0:06:29]} h5 {[%emt 0:12:23]} 17. c5 {[%emt 0:15:29]} Be6 {[%emt 0:04:15]} 18. b4 {[%emt 0:03:37]} Rfc8 {[%emt 0:05:03]} 1/2-1/2

[Event "3rd Sunway Formentera-A 2024"]
[Site "Formentera"]
[Date "2024.04.13"]
[Round "5.9"]
[White "Botez, Alexandra"]
[Black "Serikbay, Assel"]
[Result "0-1"]
[ECO "D30"]
[WhiteElo "1970"]
[BlackElo "2109"]
[Annotator "RC"]
[PlyCount "122"]
[EventDate "2024.04.03"]
[EventType "swiss"]
[EventCountry "ESP"]
[SourceTitle "playchess.com"]
[Source "ChessBase"]
[SourceQuality "1"]
[TimeControl "40/5400+30:1800+30"]

1. d4 {[%emt 1:15:24]} d5 {[%emt 1:13:56]} 2. c4 {[%emt 0:00:30]} e6 {[%emt 0:00:30]} 3. Nf3 {[%emt 0:00:30]} Nf6 {[%emt 0:00:30]} 4. cxd5 {[%emt 0:00:30]} exd5 {[%emt 0:00:30]} 5. h3 {[%emt 0:00:30]} Bd6 {[%emt 0:00:30]} 6. Nc3 {[%emt 0:00:30]} c6 {[%emt 0:00:30]} 7. e3 {[%emt 0:00:30]} Bf5 {[%emt 0:00:30]} 8. Bd3 {[%emt 0:00:30]} Bxd3 {[%emt 0:00:30]} 9. Qxd3 {[%emt 0:00:30]} Nbd7 {[%emt 0:00:30]} 10. O-O {[%emt 0:00:30]} O-O {[%emt 0:00:30]} 11. e4 {[%emt 0:00:30]} dxe4 {[%emt 0:00:30]} 12. Nxe4 {[%emt 0:00:30]} Nxe4 {[%emt 0:00:30]} 13. Qxe4 {[%emt 0:00:30]} Re8 {[%emt 0:00:30]} 14. Qd3 {[%emt 0:00:30]} Qa5 {[%emt 0:00:30]} 15. Qb3 {[%emt 0:00:30]} Qc7 {[%emt 0:00:30]} 16. Bd2 {[%emt 0:00:30]} Nf6 {[%emt 0:00:30]} 17. Rfe1 {[%emt 0:00:30]} Ne4 {[%emt 0:00:30]} 18. Qc2 {[%emt 0:00:30]} f5 {[%emt 0:00:30]} 19. Bc3 {[%emt 0:00:30]} Qf7 {[%emt 0:00:30]} 20. Nd2 {[%emt 0:00:30]} Nxd2 {[%emt 0:00:30]} 21. Qxd2 {[%emt 0:00:30]} Red8 {[%emt 0:00:30]} 22. Qc2 {[%emt 0:00:30]} Rd7 {[%emt 0:00:30]} 23. a4 {[%emt 0:00:30]} Rad8 {[%emt 0:00:30]} 24. a5 {[%emt 0:00:30]} Qd5 {[%emt 0:00:30]} 25. Re3 {[%emt 0:00:30]} f4 {[%emt 0:00:30]} 26. Re4 {[%emt 0:00:30]} Rf8 {[%emt 0:00:30]} 27. f3 {[%emt 0:00:30]} c5 {[%emt 0:00:30]} 28. Kh1 {[%emt 0:00:30]} c4 {[%emt 0:00:30]} 29. Rae1 {[%emt 0:00:30]} b5 {[%emt 0:00:30]} 30. axb6 {[%emt 0:00:30]} axb6 {[%emt 0:00:30]} 31. Re8 {[%emt 0:00:30]} Rd8 {[%emt 0:00:30]} 32. Rxd8 {[%emt 0:00:30]} Rxd8 {[%emt 0:00:30]} 33. Qe4 {[%emt 0:00:30]} Bc7 {[%emt 0:00:30]} 34. Ra1 {[%emt 0:00:30]} Qxe4 {[%emt 0:00:30]} 35. fxe4 {[%emt 0:00:30]} b5 {[%emt 0:00:30]} 36. d5 {[%emt 0:00:30]} Bb6 {[%emt 0:00:30]} 37. Ra6 {[%emt 0:00:30]} Be3 {[%emt 0:00:30]} 38. Kh2 {[%emt 0:00:30]} Kf7 {[%emt 0:00:30]} 39. Ra5 {[%emt 0:00:30]} Rb8 {[%emt 0:00:30]} 40. e5 {[%emt 0:00:30]} Bc5 {[%emt 0:00:30]} 41. h4 {[%emt 0:30:30]} Kg6 {[%emt 0:30:30]} 42. d6 {[%emt 0:00:30]} Kf7 {[%emt 0:00:30]} 43. h5 {[%emt 0:00:30]} Ke6 {[%emt 0:00:30]} 44. Kh3 {[%emt 0:00:30]} Be3 {[%emt 0:00:30]} 45. Bb4 {[%emt 0:00:30]} Bd4 {[%emt 0:00:30]} 46. Bc3 {[%emt 0:00:30]} Be3 {[%emt 0:00:30]} 47. d7 {[%emt 0:00:30]} Kxd7 {[%emt 0:00:30]} 48. e6+ {[%emt 0:00:30]} Kxe6 {[%emt 0:00:30]} 49. Bxg7 {[%emt 0:00:30]} Kd5 {[%emt 0:00:30]} 50. Kg4 {[%emt 0:00:30]} Ke4 {[%emt 0:00:30]} 51. h6 {[%emt 0:00:30]} b4 {[%emt 0:00:30]} 52. Re5+ {[%emt 0:00:30]} Kd3 {[%emt 0:00:30]} 53. Re7 {[%emt 0:00:30]} Rb6 {[%emt 0:00:30]} 54. Rd7+ {[%emt 0:00:30]} Ke2 {[%emt 0:00:30]} 55. Kh5 {[%emt 0:00:30]} Rg6 {[%emt 0:00:30]} 56. Rc7 {[%emt 0:00:30]} Rxg2 {[%emt 0:00:30]} 57. Bf6 {[%emt 0:00:30]} f3 {[%emt 0:00:30]} 58. Bh4 {[%emt 0:00:30]} f2 {[%emt 0:00:30]} 59. Bxf2 {[%emt 0:00:30]} Rxf2 {[%emt 0:00:30]} 60. Rxc4 {[%emt 0:00:30]} Rh2+ {[%emt 0:00:30]} 61. Kg4 {[%emt 0:00:30]} Bd2 {[%emt 0:00:30]} 0-1

[Event "3rd Sunway Formentera-A 2024"]
[Site "Formentera"]
[Date "2024.04.13"]
[Round "5.10"]
[White "Kazarian, Anna-Maja"]
[Black "Song, Yuxin"]
[Result "0-1"]
[ECO "A40"]
[WhiteElo "2207"]
[BlackElo "2379"]
[Annotator "RC"]
[PlyCount "60"]
[EventDate "2024.04.03"]
[EventType "swiss"]
[EventCountry "ESP"]
[SourceTitle "playchess.com"]
[Source "ChessBase"]
[SourceQuality "1"]
[TimeControl "40/5400+30:1800+30"]

1. e4 {[%emt 0:00:03]} c5 {[%emt 0:00:07]} 2. Nf3 {[%emt 0:00:07]} Nc6 {[%emt 0:00:05]} 3. d4 {[%emt 0:02:43]} cxd4 {[%emt 0:00:06]} 4. Nxd4 {[%emt 0:00:04]} Qb6 {[%emt 0:00:05]} 5. Nb3 {[%emt 0:01:02]} g6 {[%emt 0:00:06]} 6. c4 {[%emt 0:02:58]} Bg7 {[%emt 0:00:12]} 7. Nc3 {[%emt 0:00:24]} Bxc3+ {[%emt 0:06:03]} 8. bxc3 {[%emt 0:00:06]} Nf6 {[%emt 0:00:29]} 9. Be3 {[%emt 0:14:20]} Qc7 {[%emt 0:00:43]} 10. Bd3 {[%emt 0:03:19]} Ne5 {[%emt 0:05:56]} 11. Qe2 {[%emt 0:09:01]} b6 {[%emt 0:03:33]} 12. a4 {[%emt 0:17:40]} Ba6 {[%emt 0:07:56]} 13. Nd2 {[%emt 0:03:02]} d5 {[%emt 0:11:10]} 14. Bd4 {[%emt 0:14:26]} Nxd3+ {[%emt 0:18:51]} 15. Qxd3 {[%emt 0:00:06]} e5 {[%emt 0:01:46]} 16. Qg3 {[%emt 0:03:29]} Nd7 {[%emt 0:00:31]} 17. exd5 {[%emt 0:06:51]} Rc8 {[%emt 0:00:30]} 18. a5 {[%emt 0:04:57]} Bxc4 {[%emt 0:07:27]} 19. axb6 {[%emt 0:00:42]} axb6 {[%emt 0:00:01]} 20. d6 {[%emt 0:01:52]} Qc6 {[%emt 0:00:19]} 21. Bxe5 {[%emt 0:01:53]} O-O {[%emt 0:00:05]} 22. f4 {[%emt 0:07:03]} f6 {[%emt 0:02:50]} 23. Bd4 {[%emt 0:00:25]} Rfe8+ {[%emt 0:03:19]} 24. Kd1 {[%emt 0:00:16]} Be2+ {[%emt 0:04:24]} 25. Kc2 {[%emt 0:00:17]} Qxd6 {[%emt 0:00:02]} 26. Ra4 {[%emt 0:02:33]} Bb5 {[%emt 0:00:12]} 27. Kb3 {[%emt 0:02:37]} Bxa4+ {[%emt 0:00:14]} 28. Kxa4 {[%emt 0:00:05]} Nc5+ {[%emt 0:00:17]} 29. Kb5 {[%emt 0:00:35]} Qc6+ {[%emt 0:00:17]} 30. Kb4 {[%emt 0:00:05]} Qa4# {[%emt 0:00:07]} 0-1